bitfinex-derivatives/quotes_ETHF0:USTF0_20220106
["timestamp","ask_amount","ask_price","bid_price","bid_amount"]
[1641465696655,2.987694,3351.5,3350.9,2.82500042]
[1641465697155,2.987694,3351.5,3350.9,0.82021042]
[1641465697557,2.987694,3351.5,3350.2,3.30928457]
[1641465697757,2.987694,3351.5,3350.3,0.82021042]
[1641465697955,2.987694,3351.5,3350.4,0.82021042]
[1641465698158,2.00479,3350.8,3350.4,0.82021042]
[1641465698457,2.137184,3350.8,3350.4,0.82021042]
[1641465698857,2.137184,3350.8,3350.2,3.30928457]
[1641465699256,2.137184,3350.8,3350.6,0.82021042]
[1641465699658,2.137184,3350.8,3350.5,0.82021042]
[1641465699859,2.137184,3350.8,3350.3,0.82021042]
[1641465700060,2.137184,3350.8,3350.1,1.30449457]
[1641465700260,2.00479,3350.3,3350.2,0.82021042]
[1641465700469,2.137184,3350.3,3350.1,1.30449457]
[1641465700865,2.137184,3350.3,3350.2,0.16879822]
[1641465701665,2.137184,3350.3,3349.8,1.30449457]
[1641465701666,2.137184,3350.3,3350.1,0.16879822]
[1641465701865,2.81697358,3350.3,3350.1,0.16879822]
[1641465702065,2.81697358,3350.3,3349.9,0.16879822]
[1641465702066,2.137184,3350.3,3349.9,0.16879822]
[1641465702266,2.00479,3350.1,3349.8,2.12470499]
[1641465702568,0.132394,3350.0,3349.8,1.30449457]
[1641465702967,0.07152595,3349.9,3349.5,1.30449457]
[1641465703168,3.48397958,3350.1,3349.5,1.30449457]
[1641465703367,0.132394,3349.8,3349.5,1.30449457]
[1641465704367,0.132394,3349.8,3349.1,2.00479]
[1641465704368,0.132394,3349.8,3349.2,0.98018188]
[1641465704568,0.132394,3349.8,3349.6,0.82021042]
[1641465704867,0.132394,3349.8,3349.2,1.8003923]
[1641465706171,0.632394,3349.8,3349.2,1.8003923]
[1641465706570,0.632394,3349.8,3349.2,0.98018188]
[1641465706771,0.632394,3349.8,3349.4,0.82021042]
[1641465706973,0.67978958,3349.7,3349.2,1.8003923]
[1641465707173,0.132394,3349.6,3349.2,1.8003923]
[1641465707973,0.07153718,3349.5,3349.2,1.8003923]
[1641465708173,0.132394,3349.4,3349.2,1.8003923]
[1641465708773,0.132394,3349.4,3349.2,0.82021042]
[1641465710981,0.5,3349.8,3349.3,0.132394]
[1641465711176,0.5,3349.8,3349.4,0.82021042]
[1641465711377,0.5,3349.8,3349.6,0.82021042]
[1641465711677,0.5,3349.8,3349.6,0.95260442]
[1641465712577,0.5,3349.8,3349.6,0.132394]
[1641465713680,0.5,3349.8,3349.2,1.8003923]
[1641465713878,0.5,3349.8,3349.2,1.9327863]
[1641465714279,0.632394,3349.8,3349.2,1.9327863]
[1641465715481,0.632394,3349.8,3349.2,0.95260442]
[1641465717082,0.5,3349.8,3349.2,0.95260442]
[1641465717482,0.5,3349.8,3349.3,0.16883359]
[1641465717681,0.5,3349.8,3349.4,0.132394]
[1641465718182,0.5,3349.8,3349.5,0.16883359]
[1641465720485,2.00479,3349.7,3349.5,0.16883359]
[1641465720689,2.00479,3349.7,3349.3,0.30122759]
[1641465721089,2.00479,3349.7,3349.4,0.16883359]
[1641465722288,0.132394,3349.6,3349.4,0.16883359]
[1641465722688,0.132394,3349.6,3349.3,0.16883359]
[1641465723287,0.132394,3349.6,3348.8,1.30449457]
[1641465723288,2.17266335,3349.4,3348.8,1.30449457]
[1641465723488,0.67978958,3348.9,3348.3,1.96397394]
[1641465723690,1.49302533,3348.9,3348.3,1.96397394]
[1641465723890,0.67978958,3348.7,3348.3,1.96397394]
[1641465724289,1.49302533,3348.9,3348.3,1.96397394]
[1641465724491,4.00958,3348.4,3348.3,1.96397394]
[1641465724690,4.00958,3348.4,3347.7,1.96397394]
[1641465724890,1.49326389,3348.3,3347.7,1.96397394]
[1641465725089,0.132394,3348.2,3347.7,1.96397394]
[1641465725291,4.911366,3348.2,3347.7,1.96397394]
[1641465725491,5.68130451,3348.2,3347.7,1.96397394]
[1641465725791,0.09014893,3348.1,3347.7,1.96397394]
[1641465726091,0.132394,3348.0,3347.7,1.96397394]
[1641465726491,2.00479,3347.8,3347.7,1.96397394]
[1641465726694,2.00479,3347.8,3347.7,1.05020142]
[1641465727291,2.00479,3348.4,3347.7,4.04287018]
[1641465727491,1.4928916,3349.2,3348.3,0.82021042]
[1641465727691,1.4928916,3349.2,3348.2,0.82021042]
[1641465727892,1.4928916,3349.2,3348.5,0.82021042]
[1641465728092,0.22084351,3349.1,3348.5,0.82021042]
[1641465728292,0.22084351,3349.1,3348.1,0.82021042]
[1641465728492,2.00479,3348.2,3347.7,1.49266876]
[1641465728693,0.132394,3348.1,3347.2,2.82500042]
[1641465728894,0.132394,3348.1,3347.8,0.82021042]
[1641465729095,0.132394,3348.1,3347.4,0.82021042]
[1641465729297,0.132394,3348.1,3347.8,0.82021042]
[1641465729495,0.132394,3348.1,3347.2,0.82021042]
[1641465729695,0.132394,3348.1,3347.0,0.82021042]
[1641465729895,13.67218358,3348.1,3346.7,35.44971641]
[1641465730099,0.67978958,3347.9,3346.7,33.9567]
[1641465730297,0.67978958,3347.5,3346.0,31.5923]
[1641465730496,2.00479,3346.7,3346.3,0.82021042]
[1641465730696,2.00479,3346.7,3346.2,0.132394]
[1641465731096,2.00479,3346.7,3346.2,0.95260442]
[1641465731299,2.58139,3346.7,3346.2,0.132394]
[1641465731595,2.58139,3346.7,3346.6,0.82021042]
[1641465732197,2.58139,3346.7,3346.6,1.18259542]
[1641465732398,2.58139,3346.7,3346.6,0.95260442]
[1641465732998,2.58139,3346.7,3345.9,2.82500042]
[1641465733198,2.713784,3346.7,3345.9,0.82021042]
[1641465733397,15.573784,3346.7,3345.5,0.82021042]
[1641465733597,4.7814,3346.6,3346.1,0.82021042]
[1641465733797,0.132394,3346.5,3346.1,0.82021042]
[1641465734499,0.132394,3346.5,3346.2,0.82021042]
[1641465735102,3.08139,3346.7,3346.1,0.132394]
[1641465735399,12.86,3346.6,3345.5,0.82021042]
[1641465735801,4.781257,3346.6,3345.5,0.82021042]
[1641465736000,4.781257,3346.6,3346.1,0.82021042]
[1641465736201,0.632394,3346.5,3345.2,2.00479]
[1641465736402,0.632394,3346.5,3346.1,0.82021042]
[1641465736702,4.782043,3346.4,3346.1,0.82021042]
[1641465736903,0.632394,3346.5,3345.9,0.132394]
[1641465737103,0.632394,3346.5,3346.4,0.82021042]
[1641465738503,2.637184,3346.5,3345.3,1.49377916]
[1641465738705,2.637184,3346.5,3346.1,0.82021042]
[1641465738902,2.637184,3346.5,3346.0,0.132394]
[1641465739102,2.50479,3346.5,3345.6,1.5]
[1641465739301,2.50479,3346.5,3346.1,0.82021042]
[1641465739502,0.132394,3346.4,3345.5,0.82021042]
[1641465739705,0.132394,3346.4,3345.9,0.82021042]
[1641465740103,0.132394,3346.4,3346.2,0.16898977]
[1641465740303,0.132394,3346.4,3346.0,0.16898977]
[1641465740502,2.00479,3346.1,3346.0,0.16898977]
[1641465740702,2.00479,3346.1,3346.0,0.98920019]
[1641465740903,2.00479,3346.1,3346.0,0.16898977]
[1641465741304,2.00479,3346.1,3346.0,0.82021042]
[1641465741504,2.00479,3346.1,3346.0,0.16898977]
[1641465741704,2.00479,3346.1,3346.0,0.98920019]
[1641465742104,2.00479,3346.1,3346.0,0.82021042]
[1641465742306,2.00479,3346.1,3346.0,0.98920019]
[1641465743606,2.137184,3346.1,3346.0,0.16898977]
[1641465744206,2.137184,3346.1,3345.6,0.82021042]
[1641465744207,2.137184,3346.1,3345.7,0.16898977]
[1641465744408,2.137184,3346.1,3346.0,0.16898977]
[1641465744607,2.50479,3346.5,3345.8,0.16898977]
[1641465744810,2.50479,3346.5,3346.0,0.16898977]
[1641465745007,2.50479,3346.5,3345.9,0.16898977]
[1641465745208,2.50479,3346.5,3345.9,0.30138377]
[1641465745608,0.47722885,3346.5,3345.8,0.16898977]
[1641465745807,0.47722885,3346.5,3346.0,0.16898977]
[1641465746008,0.47722885,3346.5,3345.9,0.16898977]
[1641465746210,0.47722885,3346.5,3346.1,0.16898977]
[1641465746609,0.47722885,3346.5,3345.7,2.17377977]
[1641465746909,0.47722885,3346.5,3346.2,0.16898977]
[1641465747213,0.47722885,3346.5,3346.2,0.82021042]
[1641465747411,0.47722885,3346.5,3346.3,0.16898977]
[1641465747910,0.47722885,3346.5,3346.3,0.98920019]
[1641465748111,0.47722885,3346.5,3346.3,0.82021042]
[1641465748310,0.47722885,3346.5,3346.4,0.16898977]
[1641465749711,0.5,3346.7,3346.4,1.18259542]
[1641465749912,0.5,3346.7,3346.6,0.82021042]
[1641465750313,0.5,3346.7,3346.6,0.95260442]
[1641465750511,0.5,3346.7,3346.6,1.12159419]
[1641465750813,0.5,3346.7,3346.6,1.35158519]
[1641465751013,0.5,3346.7,3346.6,0.62159419]
[1641465751513,0.5,3346.7,3346.6,0.85158519]
[1641465751713,0.5,3346.7,3346.6,0.62159419]
[1641465751914,0.5,3346.7,3346.6,0.12159419]
[1641465752715,0.5,3346.7,3346.6,0.35158519]
[1641465752916,0.5,3346.7,3346.6,0.12159419]
[1641465753115,0.5,3346.7,3346.6,0.63357249]
[1641465753718,0.632394,3346.7,3346.6,0.63357249]
[1641465754617,1.32834269,3347.1,3346.7,0.367606]
[1641465754818,1.32834269,3347.0,3346.7,0.367606]
[1641465755019,1.43257923,3347.0,3346.8,0.16898395]
[1641465755217,1.32834269,3347.0,3346.7,0.03658995]
[1641465756018,0.46341005,3346.7,3346.5,1.64383241]
[1641465756217,0.46341005,3346.7,3346.4,1.64383241]
[1641465756417,1.5,3346.6,3346.2,1.96397394]
[1641465756624,12.86,3346.4,3346.2,1.96397394]
[1641465756822,14.36,3346.4,3345.9,2.45496742]
[1641465757023,12.86,3346.2,3345.9,2.45496742]
[1641465757423,17.641757,3346.1,3345.9,2.45496742]
[1641465757922,12.86,3346.1,3345.9,2.45496742]
[1641465758123,4.781829,3346.0,3345.8,2.45496742]
[1641465758323,17.641829,3346.0,3345.8,2.45496742]
[1641465758525,14.86479,3345.9,3345.8,2.45496742]
[1641465758724,2.00479,3345.9,3345.8,2.45496742]
[1641465759125,14.86479,3345.9,3345.8,2.45496742]
[1641465759326,14.86479,3345.9,3345.6,4.11805321]
[1641465759327,13.86479,3345.9,3345.6,4.11805321]
[1641465759524,13.86479,3345.9,3345.2,2.45496742]
[1641465760129,1.00479,3345.9,3345.2,2.45496742]
[1641465760626,2.00479,3345.5,3345.2,2.45496742]
[1641465760828,2.00479,3345.5,3345.0,2.45496742]
[1641465761128,14.86479,3345.5,3345.0,2.45496742]
[1641465761927,2.00479,3345.5,3345.0,2.45496742]
[1641465762127,14.86479,3345.5,3345.0,2.45496742]
[1641465762326,14.86479,3345.5,3344.9,2.45496742]
[1641465762526,2.00479,3345.5,3344.9,2.45496742]
[1641465762926,3.50479,3345.5,3344.9,2.45496742]
[1641465763129,1.5,3345.0,3344.9,1.55276742]
[1641465763429,6.28333,3345.0,3344.4,4.09161237]
[1641465763628,12.86,3344.9,3344.4,3.85801237]
[1641465763827,1.5,3344.8,3344.4,3.85801237]
[1641465764027,12.86,3344.7,3344.5,3.29882428]
[1641465764226,12.98780684,3344.7,3344.5,3.29882428]
[1641465764427,4.78383,3344.6,3344.5,3.29882428]
[1641465764627,16.77163684,3344.6,3344.3,3.85801237]
[1641465764828,17.45813684,3344.6,3344.3,3.69171237]
[1641465765027,1.49503201,3344.4,3344.2,4.98543262]
[1641465765232,1.49503201,3344.4,3344.2,4.71643262]
[1641465765430,16.644259,3344.3,3344.2,4.71643262]
[1641465765628,16.644259,3344.3,3344.2,1.43929]
[1641465765828,11.86,3344.3,3344.2,1.43929]
[1641465766028,4.784331,3344.3,3344.2,1.43929]
[1641465766629,4.784331,3344.5,3343.6,2.00479]
[1641465766830,6.284331,3344.5,3343.6,2.00479]
[1641465767030,1.49514601,3344.1,3342.8,37.1062736]
[1641465767230,1.49514601,3344.1,3342.8,4.5007736]
[1641465767430,4.785476,3344.0,3342.8,4.5007736]
[1641465767933,1.49524661,3343.9,3343.8,1.65137517]
[1641465768130,1.49524885,3343.9,3343.8,1.65137517]
[1641465768330,14.35524885,3343.9,3343.8,1.65137517]
[1641465768533,16.36003885,3343.9,3343.8,1.65137517]
[1641465769031,16.99406142,3343.9,3343.6,1.9816502]
[1641465769232,18.3467808,3343.9,3343.5,1.65137517]
[1641465769434,21.63643495,3343.9,3343.5,1.65137517]
[1641465770334,0.63402257,3343.8,3343.3,3.63302537]
[1641465770536,1.35271938,3343.7,3343.3,1.65137517]
[1641465770734,6.13805138,3343.7,3343.3,1.65137517]
[1641465771736,6.13805138,3343.7,3343.4,0.16911252]
[1641465771936,1.35271938,3343.7,3343.5,0.229991]
[1641465772137,0.63402257,3343.8,3343.6,1.5]
[1641465772337,1.98680962,3343.8,3343.6,2.99306117]
[1641465772638,2.53647572,3344.5,3343.7,4.141974]
[1641465772836,2.53647572,3344.5,3344.1,1.5]
[1641465773039,2.53647572,3344.5,3344.2,0.132394]
[1641465773238,2.53647572,3344.5,3344.2,0.960894]
[1641465773439,3.38196763,3344.8,3344.3,0.16911252]
[1641465773638,0.4543,3345.0,3344.3,0.16911252]
[1641465774039,15.36479,3344.7,3344.3,0.16911252]
[1641465774240,2.50479,3344.7,3344.3,0.16911252]
[1641465774640,2.50479,3344.7,3344.2,2.137184]
[1641465774840,2.50479,3344.7,3344.4,0.16911252]
[1641465775239,15.36479,3344.7,3344.5,0.229991]
[1641465775440,15.36479,3344.7,3344.5,0.16911252]
[1641465775642,15.36479,3344.7,3344.6,0.16911252]
[1641465776040,15.36479,3344.7,3344.3,0.16911252]
[1641465776242,15.36479,3344.7,3344.6,0.16911252]
[1641465776440,15.36479,3344.7,3344.6,0.229991]
[1641465776641,22.35976613,3344.7,3342.7,1.40660449]
[1641465776842,12.86,3344.0,3342.0,5.30147613]
[1641465777143,4.784045,3344.6,3343.1,1.5]
[1641465777343,4.784045,3344.6,3343.3,1.5]
[1641465777542,3.99976613,3344.7,3343.3,1.5]
[1641465777742,2.50479,3344.7,3343.4,1.11841094]
[1641465778146,0.14661729,3344.6,3343.4,1.11841094]
[1641465778543,2.00479,3344.2,3343.4,2.00479]
[1641465778742,14.86479,3344.2,3343.5,0.132394]
[1641465778943,0.132394,3344.1,3343.5,0.132394]
[1641465779344,0.132394,3344.1,3343.4,2.00479]
[1641465779944,0.132394,3344.1,3343.4,2.137184]
[1641465780445,0.132394,3344.1,3343.4,2.00479]
[1641465780650,1.5,3344.0,3342.3,1.49508565]
[1641465780846,1.49524438,3343.8,3341.9,66.41074438]
[1641465781045,14.35524438,3343.8,3341.9,66.41074438]
[1641465781246,1.49538971,3343.5,3341.9,64.9155]
[1641465781446,1.49538971,3343.5,3342.0,0.6276]
[1641465781645,4.786549,3343.4,3341.6,1.49538971]
[1641465781846,17.646549,3343.4,3341.6,1.49538971]
[1641465782246,17.646549,3343.4,3341.7,1.5]
[1641465782445,1.49553732,3343.2,3341.4,32.91692045]
[1641465782646,2.00479,3342.6,3341.8,2.44269]
[1641465782847,0.132394,3342.5,3341.8,2.44269]
[1641465783048,4.919659,3342.5,3341.8,2.00479]
[1641465783448,4.919659,3342.5,3341.8,2.137184]
[1641465783648,5.650759,3342.5,3341.8,2.137184]
[1641465784251,5.650759,3342.5,3341.8,2.00479]
[1641465784451,5.650759,3342.5,3341.7,0.4409]
[1641465784651,2.00479,3342.1,3341.8,0.132394]
[1641465784853,2.00479,3342.1,3341.9,0.229991]
[1641465785051,2.00479,3342.1,3341.8,0.132394]
[1641465785453,2.00479,3342.1,3341.6,0.4393]
[1641465785653,2.00479,3342.1,3341.5,2.00479]
[1641465785855,0.132394,3342.0,3340.6,0.4421]
[1641465786054,4.920232,3342.0,3340.6,0.4421]
[1641465786655,2.00479,3341.6,3340.9,3.50479]
[1641465786855,2.137184,3341.6,3340.9,3.637184]
[1641465787455,2.137184,3341.6,3340.9,2.137184]
[1641465787961,1.49644146,3341.1,3340.6,0.4421]
[1641465788156,1.49644146,3341.1,3340.5,2.00479]
[1641465788157,1.49672815,3340.7,3340.5,4.90993484]
[1641465788360,1.49672815,3340.7,3340.5,4.76533484]
[1641465788557,6.485304,3340.6,3340.5,4.32163484]
[1641465788955,4.141974,3340.6,3340.5,4.32163484]
[1641465789657,4.141974,3340.6,3340.5,3.94063484]
[1641465789856,17.869374,3340.6,3340.2,5.86128196]
[1641465790056,5.009374,3340.6,3340.2,5.86128196]
[1641465790258,4.789845,3340.5,3340.3,2.50257577]
[1641465790456,0.132394,3340.4,3340.3,2.50257577]
[1641465791059,4.00958,3340.6,3340.3,2.50257577]
[1641465791258,4.00958,3340.6,3340.4,0.229991]
[1641465791458,2.00479,3340.6,3340.4,0.229991]
[1641465791857,2.00479,3340.6,3340.5,0.16927437]
[1641465792457,2.137184,3340.6,3340.0,0.16927437]
[1641465792757,2.137184,3340.6,3340.5,0.16927437]
[1641465792957,2.137184,3340.6,3340.1,0.16927437]
[1641465793156,2.137184,3340.6,3340.5,0.16927437]
[1641465793357,2.137184,3340.6,3340.2,0.16927437]
[1641465793560,0.5,3340.5,3340.2,0.16927437]
[1641465793758,0.132394,3340.4,3340.2,2.50257577]
[1641465793959,0.132394,3340.4,3340.3,0.16927437]
[1641465794359,0.5,3340.5,3340.3,0.16927437]
[1641465794559,2.00479,3340.4,3340.3,0.16927437]
[1641465794759,2.00479,3340.4,3340.3,0.58095941]
[1641465794959,2.00479,3340.4,3340.3,0.71335341]
[1641465795763,2.00479,3340.4,3340.3,0.58095941]
[1641465795963,2.00479,3340.4,3340.3,0.81095041]
[1641465796164,2.50479,3340.4,3340.3,0.58095941]
[1641465797162,2.637184,3340.4,3340.3,0.58095941]
[1641465797363,5.63398608,3340.4,3339.1,2.00479]
[1641465797564,1.5,3340.1,3339.1,2.00479]
[1641465797767,12.86,3340.2,3339.1,2.00479]
[1641465797963,12.86,3339.9,3339.1,2.00479]
[1641465798163,0.132335,3339.8,3339.1,2.00479]
[1641465798363,4.923471,3339.8,3339.1,2.00479]
[1641465798565,2.00479,3339.6,3339.2,0.132394]
[1641465798766,2.00479,3339.6,3339.4,1.66952639]
[1641465798964,1.32476671,3339.8,3339.4,1.80192039]
[1641465799263,1.32476671,3339.8,3339.5,0.16931304]
[1641465799764,0.132335,3339.7,3339.5,0.16931304]
[1641465800363,0.132335,3339.7,3339.2,0.16931304]
[1641465800764,2.00479,3340.0,3339.2,0.16931304]
[1641465800965,1.32476671,3340.0,3339.3,0.132394]
[1641465801163,1.24766671,3340.0,3339.3,0.132394]
[1641465801367,1.24766671,3340.0,3339.4,0.16931304]
[1641465801565,1.24766671,3340.0,3339.5,0.132394]
[1641465801964,2.50479,3340.4,3339.6,0.16931304]
[1641465802165,2.50479,3340.4,3339.7,0.132394]
[1641465802564,2.50479,3340.4,3339.9,2.00479]
[1641465802765,2.50479,3340.4,3340.0,0.132394]
[1641465802965,2.50479,3340.4,3340.1,1.5]
[1641465803167,2.50479,3340.4,3340.3,1.66772747]
[1641465803566,2.50479,3340.4,3340.3,1.83704051]
[1641465804366,0.5,3340.5,3340.3,0.39930404]
[1641465804566,2.00479,3341.0,3340.4,0.132394]
[1641465804766,2.00479,3341.0,3340.6,1.5]
[1641465804966,2.00479,3341.0,3340.7,0.132394]
[1641465805169,2.00479,3341.0,3340.8,0.229991]
[1641465805467,2.00479,3341.0,3340.8,1.66604637]
[1641465805667,2.00479,3341.0,3340.9,0.16931304]
[1641465805867,2.137125,3341.0,3340.9,0.16931304]
[1641465806470,2.30278853,3341.0,3340.9,0.16931304]
[1641465807070,2.137125,3341.0,3340.4,0.16931304]
[1641465807269,2.137125,3341.0,3340.4,0.30170704]
[1641465807471,2.137125,3341.0,3340.9,0.16931304]
[1641465807672,2.137125,3341.0,3340.5,0.16931304]
[1641465808174,2.137125,3341.0,3340.4,0.30170704]
[1641465808473,2.137125,3341.0,3340.6,0.16931304]
[1641465808671,2.137125,3341.0,3340.5,0.16931304]
[1641465809075,2.137125,3341.0,3340.7,0.16931304]
[1641465809273,2.137125,3341.0,3340.6,0.16931304]
[1641465809478,3.137125,3341.0,3340.8,0.16931304]
[1641465809876,3.137125,3341.0,3340.7,0.16931304]
[1641465810076,3.137125,3341.0,3340.9,0.16931304]
[1641465810277,3.137125,3341.0,3340.8,0.16931304]
[1641465810674,3.137125,3341.0,3340.5,0.16931304]
[1641465811774,3.637125,3341.0,3340.4,0.16931304]
[1641465811975,3.637125,3341.0,3340.6,0.16931304]
[1641465812177,3.637125,3341.0,3340.5,0.16931304]
[1641465812375,1.49657136,3340.8,3340.7,0.16931304]
[1641465812576,1.62890636,3340.8,3340.6,0.16931304]
[1641465812777,2.00479,3340.7,3340.6,0.16931304]
[1641465812978,2.00479,3340.7,3340.4,0.16931304]
[1641465813179,14.492335,3340.6,3340.4,0.16931304]
[1641465813377,19.281965,3340.6,3340.4,0.16931304]
[1641465813777,1.66261267,3340.5,3340.0,0.1733]
[1641465813978,0.132335,3340.4,3340.0,0.1733]
[1641465814279,4.922395,3340.4,3340.0,0.1733]
[1641465814479,0.132335,3340.4,3340.0,0.1733]
[1641465814678,2.00479,3340.1,3340.0,0.1733]
[1641465814879,2.137125,3340.1,3340.0,0.1733]
[1641465815979,2.137125,3340.1,3340.0,0.403291]
[1641465816382,2.96820005,3340.7,3340.0,0.403291]
[1641465816582,2.96820005,3340.7,3340.2,1.5]
[1641465816786,2.96820005,3340.7,3340.3,0.132394]
[1641465817184,2.96820005,3340.7,3340.3,2.496294]
[1641465817485,2.96820005,3340.7,3340.3,0.996294]
[1641465818884,2.96820005,3340.7,3340.3,2.496294]
[1641465819084,2.0,3341.0,3340.6,1.5]
[1641465819286,2.0,3341.0,3340.7,0.132394]
[1641465819484,2.0,3341.0,3340.8,0.229991]
[1641465819884,2.0,3341.0,3340.9,0.132394]
[1641465820086,31.6393,3342.3,3340.9,0.132394]
[1641465820087,33.13520198,3342.3,3340.9,0.132394]
[1641465820484,0.16924647,3342.1,3340.9,0.132394]
[1641465820686,2.00479,3342.0,3341.2,2.00479]
[1641465820889,0.16924647,3342.2,3341.4,1.49544786]
[1641465821088,2.00479,3342.3,3341.4,1.49544786]
[1641465821288,2.00479,3342.3,3342.1,1.5]
[1641465821487,2.00479,3342.3,3342.2,0.362385]
[1641465821687,2.00479,3342.3,3341.2,2.00479]
[1641465821688,3.50071883,3342.3,3341.2,2.00479]
[1641465821889,0.16922652,3342.2,3340.5,1.5]
[1641465822289,4.788197,3342.1,3340.5,1.5]
[1641465822488,17.648197,3342.1,3340.5,1.5]
[1641465822690,2.00479,3341.9,3340.8,2.00479]
[1641465822889,14.86479,3341.9,3340.8,2.00479]
[1641465823089,0.16922652,3341.8,3340.8,2.00479]
[1641465823289,1.66922652,3341.8,3340.8,2.00479]
[1641465823488,16.876283,3341.7,3340.8,2.00479]
[1641465823691,0.132335,3341.6,3340.8,2.00479]
[1641465823891,0.30156152,3341.6,3340.8,2.00479]
[1641465824089,4.788627,3341.5,3340.8,2.00479]
[1641465824292,0.132335,3341.4,3340.8,2.00479]
[1641465824592,0.30156152,3341.4,3340.8,2.00479]
[1641465824789,2.00479,3341.3,3340.8,2.00479]
[1641465825189,0.16922652,3341.2,3340.8,2.00479]
[1641465826090,0.132335,3341.1,3340.8,2.00479]
[1641465826490,0.16922652,3341.0,3340.7,0.132394]
[1641465826690,2.00479,3340.8,3340.7,0.132394]
[1641465827191,2.00479,3340.8,3340.2,2.00479]
[1641465827392,2.137125,3340.8,3339.8,0.6276]
[1641465827591,12.86,3340.7,3339.6,2.00479]
[1641465827791,12.85600029,3340.7,3339.6,2.00479]
[1641465827990,0.16930029,3340.7,3339.6,2.00479]
[1641465828190,13.02930029,3340.7,3339.6,2.00479]
[1641465828590,0.16930029,3340.6,3339.6,2.00479]
[1641465828790,2.00479,3340.3,3339.6,2.00479]
[1641465828990,2.00479,3340.3,3339.7,0.132394]
[1641465829591,0.132335,3340.2,3339.7,0.132394]
[1641465829793,2.00479,3340.3,3339.7,0.132394]
[1641465830192,2.00479,3340.3,3339.8,0.15418876]
[1641465830693,2.00479,3340.3,3339.9,0.132394]
[1641465831093,2.00479,3340.3,3340.0,0.15418876]
[1641465831697,2.00479,3340.3,3340.1,1.862385]
[1641465831996,2.00479,3340.3,3340.1,1.201985]
[1641465832199,2.00479,3340.3,3340.2,0.15418876]
[1641465832796,2.00479,3340.3,3340.2,2.04752668]
[1641465832797,3.13803566,3340.3,3340.2,2.04752668]
[1641465832996,3.13803566,3340.3,3340.2,2.20171544]
[1641465833996,3.00570066,3340.3,3340.2,2.43170644]
[1641465834195,1.00091066,3340.3,3340.2,2.43170644]
[1641465834396,1.33458155,3340.6,3340.2,2.56410044]
[1641465834596,3.67297444,3340.8,3340.2,2.56410044]
[1641465834597,0.63476097,3340.3,3340.2,0.92188907]
[1641465834796,0.63476097,3340.3,3340.2,0.76770031]
[1641465835196,0.63476097,3340.3,3340.2,0.40531531]
[1641465835798,2.4824839,3340.4,3340.2,2.04752668]
[1641465836098,1.14790235,3340.4,3340.2,2.04752668]
[1641465836498,1.01556735,3340.4,3340.3,0.229991]
[1641465836899,3.02035735,3340.4,3340.2,2.04752668]
[1641465837099,3.02035735,3340.4,3340.2,1.64221137]
[1641465837300,3.02035735,3340.4,3340.3,0.229991]
[1641465837901,3.02035735,3340.4,3340.3,1.87220237]
[1641465838601,3.02035735,3340.4,3340.3,1.64221137]
[1641465839001,3.02035735,3340.4,3340.3,1.87220237]
[1641465839202,3.02035735,3340.4,3340.3,1.64221137]
[1641465839403,2.00479,3340.4,3340.3,1.39675291]
[1641465840004,2.00479,3340.4,3340.3,1.62674391]
[1641465841005,2.00479,3340.4,3340.3,1.39675291]
[1641465841206,2.00479,3340.4,3340.3,0.9914376]
[1641465841909,2.50479,3340.4,3340.3,1.62674391]
[1641465842307,2.50479,3340.4,3340.3,1.39675291]
[1641465843308,3.00479,3340.4,3340.3,1.39675291]
[1641465844910,3.00479,3340.4,3340.1,2.31335439]
[1641465845112,0.132335,3340.3,3340.1,0.9914376]
[1641465845909,0.132335,3340.3,3340.2,0.9914376]
[1641465847310,4.00479,3340.4,3340.2,0.9914376]
[1641465848312,4.00479,3340.4,3340.2,1.2214286]
[1641465848512,4.00479,3340.4,3340.2,1.3538226]
[1641465848711,4.00479,3340.4,3340.2,1.1238316]
[1641465848912,4.00479,3340.4,3340.1,0.9914376]
[1641465849115,4.00479,3340.4,3340.2,0.229991]
[1641465849313,4.00479,3340.4,3340.1,0.9914376]
[1641465849913,4.00479,3340.4,3340.2,1.14562984]
[1641465850115,4.00479,3340.4,3340.2,1.50801484]
[1641465850315,4.00479,3340.4,3340.3,0.15419224]
[1641465850714,4.00479,3340.4,3340.3,0.87299224]
[1641465852415,4.00479,3340.4,3340.3,1.10298324]
[1641465852615,4.00479,3340.4,3340.3,0.87299224]
[1641465853017,2.0,3340.4,3340.3,0.87299224]
[1641465853217,1.01556735,3340.8,3340.4,0.132394]
[1641465853419,1.01556735,3340.8,3340.7,1.5]
[1641465853618,1.01556735,3340.8,3340.7,1.229991]
[1641465853819,1.01556735,3340.8,3340.7,1.362385]
[1641465854019,1.01556735,3340.8,3340.7,0.28658624]
[1641465854218,1.33458155,3341.1,3340.7,1.51657724]
[1641465854620,1.33458155,3341.1,3340.8,0.15419224]
[1641465854819,1.33458155,3341.1,3340.9,0.209003]
[1641465855423,1.33458155,3341.1,3341.0,0.15419224]
[1641465856422,1.83458155,3341.1,3341.0,0.15419224]
[1641465856822,0.5,3341.1,3341.0,0.15419224]
[1641465857021,0.5,3341.1,3341.0,0.97699224]
[1641465859723,1.33458155,3341.8,3341.1,0.132394]
[1641465859923,1.33458155,3341.8,3341.5,1.229991]
[1641465860323,0.16925262,3341.7,3341.6,0.132394]
[1641465860725,5.262e-05,3341.7,3341.6,0.36319524]
[1641465860926,0.84619122,3342.4,3341.6,4.218583]
[1641465861125,2.50227666,3342.5,3341.6,4.218583]
[1641465861326,1.34981567,3342.1,3341.6,4.218583]
[1641465861926,1.34981567,3342.1,3341.8,1.229991]
[1641465862128,0.16575405,3342.0,3341.9,0.209003]
[1641465862427,0.16575405,3342.0,3341.7,0.16924883]
[1641465862428,0.39574505,3342.0,3341.7,0.16924883]
[1641465862627,0.74556072,3342.1,3341.9,0.16924883]
[1641465862826,1.66818444,3342.4,3341.9,0.16924883]
[1641465863030,4.279589,3342.0,3340.7,2.00479]
[1641465863228,0.270009,3341.2,3340.7,2.00479]
[1641465863429,4.00958,3342.0,3340.7,2.00479]
[1641465863430,0.270009,3341.3,3340.9,0.132394]
[1641465863627,5.50958,3342.0,3340.9,0.132394]
[1641465863827,1.5,3341.8,3341.0,0.16928841]